bitfinex-derivatives/quotes_BTCF0:USTF0_20241213
["timestamp","ask_amount","ask_price","bid_price","bid_amount"]
[1734067864327,0.018,100000.0,99999.0,0.841987]
[1734067864828,0.018,100000.0,99999.0,0.051987]
[1734067868329,0.067987,100000.0,99999.0,0.051987]
[1734067870037,0.067987,100000.0,99999.0,0.002]
[1734067870328,0.428787,100000.0,99999.0,0.002]
[1734067870533,0.4788005,100000.0,99979.0,0.17932691]
[1734067870731,0.3608,99981.0,99979.0,0.049997]
[1734067871730,0.3608,99981.0,99979.0,0.050997]
[1734067872228,0.3618,99981.0,99979.0,0.058997]
[1734067872629,0.3618,99981.0,99979.0,0.059997]
[1734067873335,0.3618,99981.0,99979.0,0.058997]
[1734067873533,0.3648,99981.0,99979.0,0.058997]
[1734067874031,0.414797,99981.0,99979.0,0.058997]
[1734067874229,0.414797,99981.0,99979.0,0.009]
[1734067876329,0.414797,99981.0,99979.0,0.058997]
[1734067879538,0.031,99980.0,99979.0,0.058997]
[1734067881237,0.032,99980.0,99979.0,0.058997]
[1734067881639,0.032,99980.0,99979.0,0.009]
[1734067881843,0.035,99980.0,99979.0,0.009]
[1734067882337,0.1350205,99980.0,99979.0,0.009]
[1734067883146,0.1658205,99980.0,99979.0,0.009]
[1734067885328,0.0658,99980.0,99979.0,0.009]
[1734067885544,0.035,99980.0,99979.0,0.009]
[1734067888549,0.004,99980.0,99979.0,0.24810255]
[1734067888739,0.004,99980.0,99979.0,0.0402]
[1734067890437,0.004,99980.0,99979.0,0.05043369]
[1734067893233,0.004,99980.0,99979.0,0.0402]
[1734067893542,0.004,99980.0,99979.0,0.09658419]
[1734067895035,0.004,99980.0,99979.0,0.39546238]
[1734067895241,0.004,99980.0,99979.0,0.09658419]
[1734067895446,0.004,99980.0,99979.0,0.58974908]
[1734067895645,0.004,99980.0,99979.0,0.64615276]
[1734067896038,0.004,99980.0,99979.0,0.39548187]
[1734067896244,0.004,99980.0,99979.0,0.09660368]
[1734067896446,0.004,99980.0,99979.0,0.0402]
[1734067896641,0.004,99980.0,99979.0,0.33907819]
[1734067897139,0.004,99980.0,99979.0,0.59048875]
[1734067897343,0.004,99980.0,99979.0,0.39177062]
[1734067898243,0.004,99980.0,99979.0,0.34801082]
[1734067898443,0.004,99980.0,99979.0,0.33537039]
[1734067898632,0.004,99980.0,99979.0,0.29161056]
[1734067898838,0.004,99980.0,99979.0,0.39178108]
[1734067899144,0.004,99980.0,99979.0,0.29161056]
[1734067899342,0.004,99980.0,99979.0,0.30417158]
[1734067899644,0.004,99980.0,99979.0,0.009]
[1734067911256,0.02359785,99980.0,99979.0,0.009]
[1734067911647,0.02359785,99980.0,99979.0,0.799]
[1734067912447,0.02359785,99980.0,99979.0,0.009]
[1734067917753,0.07359485,99980.0,99979.0,0.009]
[1734067922059,0.053997,99980.0,99979.0,0.058997]
[1734067922257,0.053997,99980.0,99979.0,0.29840339]
[1734067922563,0.053997,99980.0,99979.0,0.058997]
[1734067923057,0.004,99980.0,99979.0,0.058997]
[1734067927555,0.004,99980.0,99979.0,0.35820177]
[1734067928564,0.004,99980.0,99979.0,0.61156039]
[1734067928766,0.004,99980.0,99979.0,0.41263278]
[1734067931367,0.004,99980.0,99979.0,0.36887165]
[1734067932464,0.004,99980.0,99979.0,0.66849853]
[1734067935264,0.053997,99980.0,99979.0,0.61850153]
[1734067935460,0.053997,99980.0,99979.0,0.06551603]
[1734067939566,0.053997,99980.0,99979.0,0.009]
[1734067941371,0.53452338,99980.0,99979.0,0.009]
[1734067941667,0.414797,99980.0,99979.0,0.009]
[1734067941865,0.414797,99980.0,99979.0,0.18890549]
[1734067942064,0.414797,99980.0,99979.0,0.009]
[1734067942464,0.414797,99980.0,99979.0,0.18888656]
[1734067943164,0.414797,99980.0,99979.0,0.009]
[1734067944070,0.414797,99980.0,99979.0,0.18888656]
[1734067944286,0.5148175,99980.0,99979.0,0.18888656]
[1734067944567,0.5148175,99980.0,99979.0,0.009]
[1734067948269,0.63465372,99980.0,99979.0,0.009]
[1734067948573,0.5148175,99980.0,99979.0,0.18888656]
[1734067949566,0.63465372,99980.0,99979.0,0.009]
[1734067951576,0.5148175,99980.0,99979.0,0.18888656]
[1734067951773,0.63465372,99980.0,99979.0,0.009]
[1734067952478,0.5148175,99980.0,99979.0,0.009]
[1734067953177,0.63463733,99980.0,99979.0,0.1887723]
[1734067953564,0.63463733,99980.0,99979.0,0.009]
[1734067953565,0.5148175,99980.0,99979.0,0.009]
[1734067953777,0.63463603,99980.0,99979.0,0.18877127]
[1734067954173,0.5148175,99980.0,99979.0,0.18877127]
[1734067954664,0.63463603,99980.0,99979.0,0.18877127]
[1734067954868,0.5148175,99980.0,99979.0,0.18877127]
[1734067955069,0.63463603,99980.0,99979.0,0.18877127]
[1734067955277,0.5148175,99980.0,99979.0,0.18877127]
[1734067955478,0.63463603,99980.0,99979.0,0.18877127]
[1734067955667,0.5148175,99980.0,99979.0,0.18877127]
[1734067956980,0.63463603,99980.0,99979.0,0.18877127]
[1734067957165,0.5148175,99980.0,99979.0,0.18877127]
[1734067957967,0.63463603,99980.0,99979.0,0.18877203]
[1734067958469,0.5148175,99980.0,99979.0,0.009]
[1734067960380,0.5148175,99980.0,99979.0,0.18877203]
[1734067961274,0.3648,99980.0,99979.0,0.058997]
[1734067961782,0.004,99980.0,99979.0,0.71942388]
[1734067961972,0.004,99980.0,99979.0,1.52146775]
[1734067962180,0.004,99980.0,99979.0,1.56523024]
[1734067963374,0.004,99980.0,99979.0,1.13465305]
[1734067964271,0.004,99980.0,99979.0,1.13225677]
[1734067964479,0.004,99980.0,99979.0,0.77283396]
[1734067965081,0.004,99980.0,99979.0,0.72907147]
[1734067971488,0.004,99980.0,99979.0,0.97175569]
[1734067972378,0.004,99980.0,99979.0,0.7190277]
[1734067975484,0.004,99980.0,99979.0,0.97144809]
[1734067975986,0.004,99980.0,99979.0,0.7190277]
[1734067978086,0.004,99980.0,99979.0,0.72870028]
[1734067978482,0.004,99980.0,99979.0,0.77549385]
[1734067978678,0.004,99980.0,99979.0,0.71901636]
[1734067979696,0.004,99980.0,99979.0,0.7754986]
[1734067980294,0.004,99980.0,99979.0,1.02810087]
[1734067980889,0.004,99980.0,99979.0,1.07185887]
[1734067981283,0.004,99980.0,99979.0,0.77263951]
[1734067987808,0.004,99980.0,99979.0,0.67239927]
[1734067990005,0.004,99980.0,99979.0,0.67277661]
[1734067991505,0.004,99980.0,99979.0,0.77306702]
[1734067992397,0.004,99980.0,99979.0,0.72307002]
[1734067992599,0.004,99980.0,99979.0,0.30573928]
[1734067992798,0.0345,99980.0,99979.0,0.56195986]
[1734067993002,0.0345,99980.0,99979.0,0.009]
[1734067993593,0.15431853,99980.0,99979.0,0.009]
[1734067993989,0.12445232,99980.0,99979.0,0.30898025]
[1734067994195,0.12445232,99980.0,99979.0,0.009]
[1734067994196,0.0345,99980.0,99979.0,0.009]
[1734067994391,0.0345,99980.0,99979.0,0.30898025]
[1734067994598,0.004,99980.0,99979.0,0.009]
[1734067995201,0.004,99980.0,99979.0,0.56306683]
[1734067995403,0.004,99980.0,99979.0,0.31965258]
[1734067995797,0.004,99980.0,99979.0,0.36341482]
[1734067995999,0.053997,99980.0,99979.0,0.36341482]
[1734067996901,0.053997,99980.0,99979.0,1.15341482]
[1734067997208,0.053997,99980.0,99979.0,1.10965258]
[1734067997397,0.053997,99980.0,99979.0,1.40941314]
[1734067997904,0.053997,99980.0,99979.0,1.10965258]
[1734067998105,0.053997,99980.0,99979.0,1.45316861]
[1734067998610,0.053997,99980.0,99979.0,1.50316561]
[1734067998998,0.053997,99980.0,99979.0,1.50316206]
[1734068000403,0.053997,99980.0,99979.0,1.20531622]
[1734068002210,0.053997,99980.0,99979.0,1.50341714]
[1734068002406,0.053997,99980.0,99979.0,1.45342014]
[1734068002808,0.053997,99980.0,99979.0,0.799]
[1734068003418,0.053997,99980.0,99979.0,0.009]
[1734068004510,0.5148175,99980.0,99979.0,0.2487831]
[1734068004714,0.049999,99976.0,99975.0,0.2397831]
[1734068005008,0.049999,99976.0,99969.0,0.34975522]
[1734068005009,0.049999,99975.0,99974.0,0.2397831]
[1734068005199,0.05,99974.0,99973.0,0.2397831]
[1734068005402,0.17057794,99974.0,99973.0,0.2397831]
[1734068005814,0.17057794,99974.0,99972.0,0.2397831]
[1734068005815,0.0307,99974.0,99972.0,0.2397831]
[1734068006116,0.0307,99974.0,99971.0,0.2397831]
[1734068006303,0.410801,99972.0,99971.0,0.2397831]
[1734068007709,0.415801,99972.0,99971.0,0.2397831]
[1734068008110,0.3658,99972.0,99970.0,0.2397831]
[1734068008311,0.050001,99971.0,99970.0,0.2397831]
[1734068009616,0.051001,99971.0,99970.0,0.2397831]
[1734068010622,0.056001,99971.0,99970.0,0.2397831]
[1734068011012,0.006,99971.0,99969.0,0.2397831]
[1734068011212,0.050002,99970.0,99969.0,0.2397831]
[1734068012112,0.050002,99970.0,99969.0,0.2417831]
[1734068012508,0.050002,99970.0,99969.0,0.2397831]
[1734068012718,0.050002,99970.0,99969.0,0.2417831]
[1734068012719,0.051002,99970.0,99969.0,0.2417831]
[1734068013916,0.055002,99970.0,99969.0,0.2417831]
[1734068015818,0.055002,99970.0,99969.0,0.24157959]
[1734068016027,0.055002,99970.0,99969.0,0.002]
[1734068016716,0.055002,99970.0,99969.0,0.792]
[1734068019835,0.005,99970.0,99969.0,0.792]
[1734068020036,0.005,99970.0,99969.0,0.842002]
[1734068022042,0.005,99970.0,99969.0,0.052002]
[1734068027148,0.005,99970.0,99969.0,0.35175522]
[1734068029241,0.005,99970.0,99969.0,0.60576448]
[1734068029446,0.005,99970.0,99969.0,0.30601126]
[1734068029744,0.005,99970.0,99969.0,0.36256576]
[1734068029949,0.005,99970.0,99969.0,0.30601126]
[1734068030141,0.005,99970.0,99969.0,0.36256769]
[1734068032841,0.005,99970.0,99969.0,0.40633379]
[1734068033047,0.005,99970.0,99969.0,0.36256769]
[1734068035945,0.005,99970.0,99969.0,0.40633423]
[1734068038145,0.005,99970.0,99969.0,1.19633423]
[1734068039354,0.005,99970.0,99969.0,1.15256769]
[1734068040047,0.005,99970.0,99969.0,1.19633424]
[1734068040957,0.005,99970.0,99969.0,1.15256769]
[1734068041546,0.005,99970.0,99969.0,1.19633424]
[1734068041859,0.005,99970.0,99969.0,1.19751959]
[1734068046055,0.055002,99970.0,99969.0,1.19751959]
[1734068051657,0.055002,99970.0,99969.0,1.55746465]
[1734068052161,0.055002,99970.0,99969.0,1.50746265]
[1734068054163,0.055002,99970.0,99969.0,1.14751759]
[1734068054452,0.055002,99970.0,99969.0,1.50746265]
[1734068055056,0.055002,99970.0,99969.0,1.14751759]
[1734068056360,0.14488062,99970.0,99969.0,1.14751759]
[1734068056660,0.14488062,99970.0,99969.0,1.14746979]
[1734068057162,0.055002,99970.0,99969.0,1.14746979]
[1734068060450,0.055002,99970.0,99969.0,1.1473705]
[1734068061855,0.055002,99970.0,99969.0,1.50731556]
[1734068063266,0.055002,99970.0,99969.0,1.1473705]
[1734068065162,0.055002,99970.0,99969.0,1.14730321]
[1734068068361,0.055002,99970.0,99969.0,1.50724827]
[1734068073465,0.1550325,99970.0,99964.0,0.24010006]
[1734068073661,0.19973723,99969.0,99966.0,0.17995757]
[1734068073867,0.050004,99966.0,99965.0,0.17995757]
[1734068074167,0.050005,99963.0,99962.0,0.17995757]
[1734068074560,0.10003301,99966.0,99960.0,0.17995757]
[1734068074764,0.16973899,99961.0,99960.0,0.17995757]
[1734068075663,0.050007,99960.0,99959.0,0.17995757]
[1734068075861,0.082107,99960.0,99959.0,0.17995757]
[1734068076567,0.050008,99959.0,99958.0,0.17995757]
[1734068076763,0.13975794,99959.0,99958.0,0.17995757]
[1734068077672,0.050008,99958.0,99957.0,0.17995757]
[1734068077858,0.410808,99958.0,99957.0,0.17995757]
[1734068078559,0.050009,99957.0,99956.0,0.17995757]
[1734068079974,0.080709,99957.0,99956.0,0.17995757]
[1734068080158,0.083709,99957.0,99956.0,0.17995757]
[1734068080559,0.050009,99956.0,99955.0,0.17995757]
[1734068081772,0.412809,99956.0,99955.0,0.17995757]
[1734068082559,0.412809,99956.0,99950.0,0.24010006]
[1734068082560,0.3628,99956.0,99950.0,0.24010006]
[1734068082769,0.413809,99956.0,99955.0,0.17964668]
[1734068084771,0.412809,99956.0,99955.0,0.17964668]
[1734068084959,0.412809,99956.0,99950.0,0.29011206]
[1734068084960,0.3628,99956.0,99954.0,0.17964668]
[1734068085166,0.05001,99955.0,99954.0,0.17964668]
[1734068086369,0.050012,99951.0,99950.0,0.29011206]
[1734068087569,0.051012,99951.0,99950.0,0.29011206]
[1734068088480,0.051012,99951.0,99950.0,0.050012]
[1734068088481,0.052012,99951.0,99950.0,0.050012]
[1734068089583,0.052012,99951.0,99950.0,0.29011206]
[1734068090270,0.002,99951.0,99950.0,0.29011206]
[1734068093577,0.002,99951.0,99950.0,0.33388755]
[1734068094575,0.002,99951.0,99950.0,0.09378749]
[1734068097676,0.002,99951.0,99950.0,0.050012]
[1734068098383,0.002,99951.0,99950.0,0.09378749]
[1734068100678,0.08974994,99959.0,99950.0,0.69800465]
[1734068100878,0.08974994,99966.0,99964.0,0.050005]
[1734068101079,0.08974994,99970.0,99958.0,0.410808]
[1734068101292,0.0331,99971.0,99970.0,0.050002]
[1734068102990,0.0341,99971.0,99970.0,0.051002]
[1734068103377,0.0331,99971.0,99970.0,0.051002]
[1734068103687,0.0391,99971.0,99970.0,0.051002]
[1734068104395,0.0371,99971.0,99970.0,0.051002]
[1734068104592,0.0371,99971.0,99970.0,0.29063614]
[1734068104986,0.0341,99971.0,99970.0,0.29063614]
[1734068105291,0.0371,99971.0,99970.0,0.29063614]
[1734068106288,0.0371,99971.0,99970.0,0.051002]
[1734068106596,0.0341,99971.0,99970.0,0.051002]
[1734068106895,0.0371,99971.0,99970.0,0.051002]
[1734068117018,0.0371,99971.0,99970.0,0.23057472]
[1734068117524,0.0371,99971.0,99970.0,0.051002]
[1734068120619,0.0371,99971.0,99970.0,0.841002]
[1734068121513,0.0371,99971.0,99970.0,1.02062524]
[1734068121819,0.0371,99971.0,99970.0,0.23062524]
[1734068122214,0.0371,99971.0,99970.0,0.051002]
[1734068122410,0.0371,99971.0,99970.0,0.23062524]
[1734068123516,0.0371,99971.0,99970.0,0.051002]
[1734068127519,0.12684994,99971.0,99970.0,0.051002]
[1734068127718,0.12684994,99971.0,99970.0,0.29063614]
[1734068128418,0.0371,99971.0,99970.0,0.051002]
[1734068134518,0.0371,99971.0,99970.0,0.1076224]
[1734068138629,0.0371,99971.0,99970.0,0.0576204]
[1734068140427,0.15683199,99971.0,99970.0,0.0576204]
[1734068142829,0.0371,99971.0,99970.0,0.001]
[1734068146729,0.0371,99971.0,99970.0,0.10139664]
[1734068153226,0.0371,99971.0,99970.0,0.15139864]
[1734068154427,0.087101,99971.0,99970.0,0.15139864]
[1734068154621,0.087101,99971.0,99970.0,0.1076307]
[1734068157226,0.087101,99971.0,99970.0,0.15139858]
[1734068159434,0.087101,99971.0,99970.0,0.1076307]
[1734068160228,0.087101,99971.0,99970.0,0.1513986]
[1734068161139,0.087101,99971.0,99970.0,0.1076307]
[1734068171343,0.054001,99971.0,99970.0,0.15139858]
[1734068173850,0.004,99971.0,99970.0,0.15139858]
[1734068174047,0.14994733,99982.0,99970.0,0.70777194]
[1734068174241,0.3608,99984.0,99983.0,0.049995]
[1734068174843,0.00150064,99991.0,99983.0,0.3635072]
[1734068175042,0.00150064,99991.0,99990.0,0.049992]
[1734068176142,0.01050064,99991.0,99990.0,0.049992]
[1734068176341,0.01950064,99991.0,99990.0,0.049992]
[1734068176857,0.00150064,99991.0,99990.0,0.049992]
[1734068177053,0.01950064,99991.0,99990.0,0.050992]
[1734068178753,0.01950064,99991.0,99990.0,0.29054943]
[1734068179055,0.01950064,99991.0,99990.0,0.050992]
[1734068179253,0.01950064,99991.0,99990.0,0.29050261]
[1734068180154,0.01950064,99991.0,99990.0,0.050992]
[1734068198162,0.01950064,99991.0,99990.0,0.29050261]
[1734068199161,0.01950064,99991.0,99990.0,0.050992]
[1734068203169,0.01950064,99991.0,99990.0,0.3047377]
[1734068208165,0.01950064,99991.0,99990.0,0.36133768]
[1734068209071,0.01950064,99991.0,99990.0,0.31134568]
[1734068220471,0.01950064,99991.0,99990.0,0.05759998]
[1734068220669,0.01950064,99991.0,99990.0,0.31160095]
[1734068225175,0.01950064,99991.0,99990.0,1.10160095]
[1734068225576,0.01950064,99991.0,99990.0,0.31160095]
[1734068230978,0.01950064,99991.0,99990.0,0.31063442]
[1734068232784,0.01950064,99991.0,99990.0,0.05759998]
[1734068233081,0.01950064,99991.0,99990.0,0.31059866]
[1734068236486,0.01950064,99991.0,99990.0,0.36059066]
[1734068236989,0.01950064,99991.0,99990.0,0.36064436]
[1734068237587,0.01950064,99991.0,99990.0,0.36064472]
[1734068237975,0.01950064,99991.0,99990.0,0.36057751]
[1734068241087,0.018,99991.0,99990.0,0.36057751]
[1734068247586,0.067992,99991.0,99990.0,0.31058551]
[1734068247792,0.067992,99991.0,99990.0,0.001]
[1734068248100,0.1680015,99991.0,99990.0,0.001]
[1734068248895,0.31794883,99991.0,99990.0,0.001]
[1734068249492,0.1680015,99991.0,99990.0,0.18089968]
[1734068249891,0.1680015,99991.0,99990.0,0.13099968]
[1734068250496,0.1680015,99991.0,99981.0,0.049996]
[1734068250497,0.1680015,99991.0,99983.0,0.23994615]
[1734068250809,0.049996,99983.0,99982.0,0.23994615]
[1734068251197,0.081096,99983.0,99982.0,0.23994615]
[1734068251603,0.049996,99982.0,99981.0,0.28994215]
[1734068253296,0.050996,99982.0,99981.0,0.29194215]
[1734068253501,0.050996,99982.0,99981.0,0.051996]
[1734068253704,0.055996,99982.0,99981.0,0.051996]
[1734068254205,0.055996,99982.0,99981.0,0.002]
[1734068268509,0.055996,99982.0,99981.0,0.24194615]
[1734068268711,0.055996,99982.0,99981.0,0.002]
[1734068269503,0.055996,99982.0,99981.0,0.24194615]
[1734068269707,0.055996,99982.0,99981.0,0.002]
[1734068271217,0.1560145,99982.0,99981.0,0.002]
[1734068271408,0.1868145,99982.0,99981.0,0.002]
[1734068272304,0.30649586,99982.0,99981.0,0.002]
[1734068272506,0.1868145,99982.0,99981.0,0.002]
[1734068274413,0.3063972,99982.0,99981.0,0.002]
[1734068274605,0.30640938,99982.0,99981.0,0.002]
[1734068274810,0.1868145,99982.0,99981.0,0.002]
[1734068275312,0.1560145,99982.0,99981.0,0.002]
[1734068279715,0.5168145,99982.0,99981.0,0.002]
[1734068282924,0.416796,99982.0,99981.0,0.002]
[1734068283437,0.3668,99982.0,99981.0,0.002]
[1734068283817,0.3668,99982.0,99981.0,0.35865597]
[1734068284020,0.3668,99982.0,99981.0,0.6102537]
[1734068284422,0.3668,99982.0,99981.0,0.35865597]
[1734068286617,0.3668,99982.0,99981.0,0.05859437]
[1734068286819,0.3668,99982.0,99981.0,0.35865597]
[1734068287227,0.3668,99982.0,99981.0,0.05859437]
[1734068287429,0.3668,99982.0,99981.0,0.35865597]
[1734068287627,0.3668,99982.0,99981.0,0.05859437]
[1734068288122,0.3668,99982.0,99981.0,0.35865597]
[1734068288527,0.3668,99982.0,99981.0,0.05859437]
[1734068288929,0.3668,99982.0,99981.0,0.002]
[1734068289120,0.3668,99982.0,99981.0,0.01189117]
[1734068289528,0.3668,99982.0,99981.0,0.06188817]
[1734068289730,0.006,99982.0,99981.0,0.06188817]
[1734068291718,0.006,99982.0,99981.0,0.051997]
[1734068296733,0.055996,99982.0,99981.0,0.051997]
[1734068309543,0.055996,99982.0,99981.0,0.3520586]
[1734068310928,0.055996,99982.0,99981.0,0.3020616]
[1734068311838,0.055996,99982.0,99981.0,0.25525414]
[1734068316839,0.055996,99982.0,99981.0,0.31186352]
[1734068317236,0.055996,99982.0,99981.0,0.25525414]
[1734068317740,0.055996,99982.0,99981.0,0.31189431]
[1734068324550,0.14582417,99982.0,99981.0,0.31189431]
[1734068324937,0.055996,99982.0,99981.0,0.31189431]
[1734068326052,0.14582417,99982.0,99981.0,0.31189431]
[1734068326255,0.055996,99982.0,99981.0,0.31189431]
[1734068327143,0.14583163,99982.0,99981.0,0.05864017]
[1734068327343,0.14582924,99982.0,99981.0,0.31268976]
[1734068327651,0.055996,99982.0,99981.0,0.31268976]
[1734068328639,0.14583156,99982.0,99981.0,0.31268976]
[1734068330148,0.055996,99982.0,99981.0,0.31268976]
[1734068330345,0.055996,99982.0,99981.0,0.25604959]
[1734068331051,0.055996,99982.0,99981.0,0.30200976]
[1734068331357,0.055996,99982.0,99981.0,0.5559104]
[1734068332347,0.055996,99982.0,99981.0,0.30200976]
[1734068332746,0.055996,99982.0,99981.0,0.55580402]
[1734068332956,0.055996,99982.0,99981.0,0.25579426]
[1734068333651,0.006,99982.0,99981.0,0.25579426]
[1734068333849,0.006,99982.0,99981.0,0.30579126]
[1734068336356,0.006,99982.0,99981.0,0.30571427]
[1734068337354,0.006,99982.0,99981.0,0.36234694]
[1734068340562,0.006,99982.0,99981.0,0.36238388]
[1734068342349,0.09583767,99982.0,99981.0,0.36238388]
[1734068343964,0.09583767,99982.0,99981.0,0.36257114]
[1734068347663,0.006,99982.0,99981.0,0.36257114]
[1734068347864,0.08984092,99986.0,99985.0,0.049995]
[1734068348065,0.3608,99996.0,99985.0,0.31056747]
[1734068348066,0.08984724,99990.0,99985.0,0.31056747]
[1734068348381,0.0318,99996.0,99995.0,0.04999]
[1734068348668,0.0318,99996.0,99995.0,0.83999]
[1734068349073,0.3939,100010.0,100000.0,0.049987]
[1734068349261,0.3608,100010.0,100000.0,0.1760615]
[1734068349672,0.69016429,100010.0,100000.0,1.02337129]
[1734068350056,0.69016429,100010.0,100000.0,0.47257358]
[1734068350057,0.63019905,100010.0,100000.0,0.47257358]
[1734068350261,0.63919905,100010.0,100000.0,0.41594758]
[1734068351264,0.64936626,100010.0,100000.0,0.41594758]
[1734068352171,0.65236626,100010.0,100000.0,0.41694758]
[1734068353075,0.50265522,100010.0,100000.0,0.41694758]
[1734068353770,0.49248801,100010.0,100000.0,0.41694758]
[1734068353971,0.2214299,100010.0,100000.0,0.41694758]
[1734068354371,0.10174189,100010.0,100000.0,0.71680518]
[1734068354574,0.10174189,100010.0,100000.0,0.74910518]
[1734068354771,0.10174189,100010.0,100000.0,1.05495321]
[1734068355073,0.10174189,100010.0,100000.0,0.74910518]
[1734068355964,0.10174189,100010.0,100000.0,1.05495858]
[1734068356168,0.012,100010.0,100000.0,0.44924758]
[1734068357876,0.012,100010.0,100000.0,0.80556845]
[1734068358067,0.012,100010.0,100000.0,0.44924758]
[1734068358266,0.012,100010.0,100000.0,1.53910518]
[1734068358766,0.012,100010.0,100000.0,1.23924758]
[1734068359171,0.012,100010.0,100000.0,1.60004758]
[1734068361467,0.012,100010.0,100000.0,2.20462312]
[1734068362674,0.012,100010.0,100000.0,2.20447996]
[1734068363583,0.012,100010.0,100000.0,2.07840546]
[1734068363781,0.012,100010.0,100000.0,1.60004758]
[1734068369778,0.012,100010.0,100000.0,1.89990518]
[1734068371171,0.012,100010.0,100000.0,2.14904429]
[1734068371978,0.012,100010.0,100000.0,2.14905089]
[1734068372984,0.012,100010.0,100000.0,1.44167308]
[1734068372985,0.12501925,100010.0,100000.0,1.44167308]
[1734068373284,0.21476114,100010.0,100000.0,1.44167308]
[1734068373485,0.21476114,100010.0,100000.0,1.68408285]
[1734068374186,0.21476114,100010.0,100000.0,1.50471033]
[1734068374381,0.15172389,100010.0,100000.0,1.50471033]
[1734068375486,0.16175098,100010.0,100000.0,1.50471033]
[1734068377080,0.28143899,100010.0,100000.0,1.81535747]
[1734068378679,0.28143899,100010.0,100000.0,1.87839472]
[1734068380190,0.28143899,100010.0,100000.0,1.51759472]
[1734068381080,0.28143899,100010.0,100000.0,1.93357217]
[1734068381485,0.2214299,100010.0,100000.0,1.93357217]
[1734068382188,0.10174189,100010.0,100000.0,1.63371457]
[1734068382784,0.10174189,100010.0,100000.0,1.93137178]
[1734068383488,0.2214299,100010.0,100000.0,1.63371457]
[1734068383681,0.10174189,100010.0,100000.0,1.63371457]
[1734068383992,0.10174189,100010.0,100000.0,1.93126133]
[1734068384176,0.2214299,100010.0,100000.0,1.93126133]
[1734068384382,0.10174189,100010.0,100000.0,1.93126133]
[1734068385588,0.10174189,100010.0,100000.0,1.57143221]
[1734068385790,0.0500474,100010.0,100000.0,1.57143221]
[1734068385995,0.19993541,100020.0,100010.0,0.049982]
[1734068386293,0.19993541,100020.0,100010.0,1.43997843]
[1734068387281,0.20793541,100020.0,100010.0,1.44097843]
[1734068387485,0.21693541,100020.0,100010.0,1.44097843]
[1734068387883,0.20893541,100020.0,100010.0,1.43997843]
[1734068388088,0.21693541,100020.0,100010.0,1.44097843]
[1734068390099,0.21693541,100020.0,100010.0,1.50456128]
[1734068390292,0.18673541,100020.0,100010.0,1.14492388]
[1734068391596,0.18673541,100020.0,100010.0,1.93492388]
[1734068392394,0.18673541,100020.0,100010.0,1.94510754]
[1734068394000,0.18673541,100020.0,100010.0,1.58430754]
[1734068394406,0.18673541,100020.0,100010.0,1.94510754]
[1734068394694,0.18673541,100020.0,100010.0,1.94566151]
[1734068395501,0.18673541,100020.0,100010.0,1.8083406]
[1734068395701,0.18673541,100020.0,100010.0,1.51057785]
[1734068395892,0.13668801,100020.0,100010.0,1.51057785]
[1734068399298,0.13668801,100020.0,100010.0,1.51117285]
[1734068400602,0.13668801,100020.0,100010.0,1.4481356]
[1734068400990,0.18666501,100020.0,100010.0,1.51117285]
[1734068402500,0.13668801,100020.0,100010.0,1.87197285]
[1734068402702,0.13668801,100020.0,100010.0,1.93587285]
[1734068402896,0.017,100020.0,100010.0,2.29551025]
[1734068403609,0.13668801,100020.0,100010.0,1.93587285]
[1734068406801,0.13668801,100020.0,100010.0,1.68491175]
[1734068407009,0.13668801,100020.0,100010.0,1.93593141]
[1734068408093,0.13668801,100020.0,100010.0,1.94618819]
[1734068409400,0.13668801,100020.0,100010.0,2.30582559]
[1734068410106,0.13668801,100020.0,100010.0,2.00612776]
[1734068410413,0.13668801,100020.0,100010.0,2.30486291]
[1734068411416,0.13668801,100020.0,100010.0,2.36734594]
[1734068411710,0.13668801,100020.0,100010.0,2.39794594]
[1734068412512,0.12868801,100020.0,100010.0,2.39694594]
[1734068412808,0.12868801,100020.0,100010.0,2.39794594]
[1734068412809,0.13368801,100020.0,100010.0,2.39794594]
[1734068413009,0.13368801,100020.0,100010.0,2.33590869]
[1734068413803,0.13368801,100020.0,100010.0,2.39894594]
[1734068419017,0.014,100020.0,100010.0,2.03930854]
[1734068420009,0.005,100020.0,100010.0,2.80108226]
[1734068420216,0.014,100020.0,100010.0,2.80208226]
[1734068420511,0.014,100020.0,100010.0,2.79638865]
[1734068421014,0.013,100020.0,100010.0,2.79638865]
[1734068421213,0.013,100020.0,100010.0,2.45348078]
[1734068421803,0.013,100020.0,100010.0,2.81428078]
[1734068423011,0.013,100020.0,100010.0,2.39448014]
[1734068424316,0.013,100020.0,100010.0,2.26840564]
[1734068424516,0.013,100020.0,100010.0,2.39448014]
[1734068424813,0.013,100020.0,100010.0,2.69095784]
[1734068425113,0.013,100020.0,100010.0,2.75399509]
[1734068425715,0.013,100020.0,100010.0,2.62792059]
[1734068425916,0.013,100020.0,100010.0,2.75399509]
[1734068427719,0.013,100020.0,100010.0,2.62792059]
[1734068427907,0.013,100020.0,100010.0,2.75399509]
[1734068429612,0.013,100020.0,100010.0,2.75677453]
[1734068431519,0.013,100020.0,100010.0,2.45967526]
[1734068434521,0.013,100020.0,100010.0,2.69359157]
[1734068435119,0.013,100020.0,100010.0,2.75662882]
[1734068435322,0.013,100020.0,100010.0,2.39711387]
[1734068435721,0.013,100020.0,100010.0,2.3712127]
[1734068436115,0.013,100020.0,100010.0,3.1612127]
[1734068437924,0.013,100020.0,100010.0,3.7541494]
[1734068438126,0.013,100020.0,100010.0,3.27437723]
[1734068439031,0.013,100020.0,100010.0,3.21133998]
[1734068440033,0.013,100020.0,100010.0,3.09817545]
[1734068447933,0.013,100020.0,100010.0,3.09455794]
[1734068448328,0.013,100020.0,100010.0,3.09458257]
[1734068448628,0.013,100020.0,100010.0,2.33153343]
[1734068450939,0.013,100020.0,100010.0,3.90845128]
[1734068451137,0.013,100020.0,100010.0,3.63070951]
[1734068451838,0.013,100020.0,100010.0,3.33070951]
[1734068452144,0.004,100020.0,100010.0,3.32970951]
[1734068452340,0.005,100020.0,100010.0,4.14323863]